bitfinex/quotes_ETHUSD_20241124
["timestamp","ask_amount","ask_price","bid_price","bid_amount"]
[1732489841021,3.02266305,3349.7,3349.6,0.149074]
[1732489841447,3.78996305,3349.7,3349.6,0.149074]
[1732489842925,3.75205,3350.4,3349.6,0.149074]
[1732489843314,0.03731944,3350.3,3349.6,0.447614]
[1732489843632,3.02213944,3350.3,3349.6,0.149074]
[1732489843835,0.03731944,3350.3,3349.6,0.149074]
[1732489844162,0.03731944,3350.3,3349.7,0.05460395]
[1732489844163,2.98489,3350.2,3349.7,0.05460395]
[1732489844363,0.55,3350.0,3349.7,0.05460395]
[1732489844570,3.74235,3349.8,3349.7,0.05460395]
[1732489844857,0.7571,3349.8,3349.6,0.149074]
[1732489845060,3.022666,3349.7,3349.6,0.149074]
[1732489846274,1.2273829,3349.8,3349.6,0.149074]
[1732489846484,2.98534,3349.7,3349.6,0.149074]
[1732489847528,7.31274,3349.7,3349.6,0.149074]
[1732489847728,8.59994246,3349.7,3349.6,0.149074]
[1732489849340,3.76274,3349.7,3349.6,0.149074]
[1732489849544,3.80006606,3349.7,3349.6,0.149074]
[1732489850071,3.76274,3349.7,3349.6,0.149074]
[1732489850356,0.7774,3349.7,3349.6,0.149074]
[1732489850560,4.31274,3349.7,3349.6,0.149074]
[1732489850891,8.04626561,3349.7,3349.6,0.149074]
[1732489851253,10.48303492,3349.7,3349.6,0.149074]
[1732489851570,10.48303492,3349.7,3349.6,4e-06]
[1732489851738,0.7834,3349.2,3347.5,0.7749]
[1732489851924,2.98656,3348.4,3347.7,0.2987]
[1732489852135,0.03734204,3348.4,3347.5,0.7749]
[1732489852337,3.02378009,3348.5,3347.8,0.05285461]
[1732489852633,2.9865,3348.4,3347.7,0.29871]
[1732489852840,0.03733991,3348.3,3347.7,0.29871]
[1732489853031,3.80670988,3349.0,3347.8,0.05285461]
[1732489853254,2.98614,3348.8,3348.1,0.29867]
[1732489853462,0.03733717,3348.8,3348.2,0.771]
[1732489853661,0.7834,3349.0,3348.2,0.771]
[1732489853662,0.03733515,3348.7,3348.2,0.771]
[1732489853870,2.98635,3348.6,3348.2,0.05285461]
[1732489854036,2.98615,3348.8,3348.1,0.29867]
[1732489854244,0.03733601,3349.0,3348.6,0.29862]
[1732489854449,3.02312245,3349.2,3348.6,0.29862]
[1732489854699,3.02312245,3349.2,3348.7,0.05285461]
[1732489855048,2.98552,3349.5,3348.7,0.05285461]
[1732489855049,0.03733193,3349.1,3348.7,0.05285461]
[1732489855284,0.03733019,3349.4,3348.9,0.2986]
[1732489855587,0.03732883,3349.6,3349.0,0.29859]
[1732489855754,0.03732883,3349.6,3349.1,0.29858]
[1732489856161,0.03732883,3349.6,3349.3,0.29856]
[1732489856342,0.7796,3350.0,3349.2,0.7931]
[1732489856343,0.03732532,3350.0,3349.2,0.7931]
[1732489856554,3.76432,3350.4,3349.4,0.05285461]
[1732489856757,0.03732177,3350.3,3349.7,0.29852]
[1732489857282,0.03732177,3350.3,3349.2,0.7931]
[1732489857489,0.03732177,3350.3,3349.8,0.05285461]
[1732489857779,0.78342655,3350.3,3349.7,0.29853]
[1732489858084,0.03732177,3350.3,3349.9,0.29851]
[1732489858284,0.03731828,3350.5,3349.9,0.29851]
[1732489858486,0.03731791,3350.6,3349.2,0.7931]
[1732489858675,0.03731791,3350.6,3350.1,0.59698]
[1732489858993,0.03731448,3350.8,3350.2,0.35140968]
[1732489859143,0.63593656,3350.9,3350.4,0.29847]
[1732489859340,0.63593656,3350.9,3350.2,0.29848]
[1732489859341,0.59862314,3350.9,3350.2,0.29848]
[1732489859578,0.59862314,3350.9,3350.4,0.29846]
[1732489859749,0.59862314,3350.9,3350.6,0.29845]
[1732489859950,3.02158126,3350.9,3350.0,1.0828]
[1732489860279,3.02161126,3350.9,3350.1,0.29849]
[1732489860501,3.02161126,3350.9,3350.2,0.29848]
[1732489860788,0.03731126,3350.9,3350.4,0.29846]
[1732489860949,0.03731126,3350.9,3350.3,0.29847]
[1732489861154,0.03731181,3350.8,3350.5,0.05284577]
[1732489861343,2.98454,3350.6,3350.5,0.05284577]
[1732489861645,2.98454,3350.6,3350.0,0.2985]
[1732489861646,0.03731723,3350.6,3350.0,0.2985]
[1732489861845,3.37984018,3350.8,3350.0,0.2985]
[1732489861846,0.55,3350.7,3350.0,0.2985]
[1732489862144,0.03731689,3350.6,3350.1,0.05242195]
[1732489862342,3.0,3350.5,3349.8,0.29852]
[1732489862602,0.03731728,3350.4,3349.8,0.29852]
[1732489862803,3.02204728,3350.4,3349.7,1.10143]
[1732489863047,0.93798301,3350.4,3349.9,0.05242195]
[1732489863202,2.9854,3349.7,3348.7,0.29862]
[1732489863420,0.03732812,3349.6,3349.2,0.29857]
[1732489863573,0.03732353,3350.1,3349.5,0.29855]
[1732489863769,2.98469,3350.5,3348.8,0.04874098]
[1732489863770,3.0,3350.6,3349.9,0.2985]
[1732489864004,0.03731725,3350.5,3349.9,0.2985]
[1732489864214,1.01849198,3350.5,3350.0,0.2985]
[1732489864375,0.03731725,3350.5,3350.0,0.2985]
[1732489864710,3.8055,3350.8,3350.1,0.34723098]
[1732489864906,3.0,3350.6,3350.1,0.04874098]
[1732489865104,0.0373156,3350.7,3350.0,0.2985]
[1732489865406,2.98461,3350.6,3349.6,0.29854]
[1732489865587,2.98461,3350.6,3349.3,0.01513463]
[1732489865588,3.0,3349.8,3349.3,0.7879]
[1732489865952,2.9857,3349.3,3348.6,0.29863]
[1732489866204,0.03732811,3349.2,3348.7,0.29862]
[1732489866515,0.03732811,3349.2,3348.7,0.59724]
[1732489866648,0.03732878,3349.5,3348.7,0.29862]
[1732489866851,0.03732878,3349.5,3349.0,0.29859]
[1732489867095,2.98553,3349.5,3348.7,0.29861]
[1732489867301,2.9857,3349.3,3348.3,1.08655]
[1732489867604,0.03732969,3349.2,3348.5,0.29863]
[1732489867892,0.03732969,3349.2,3348.4,0.29865]
[1732489868295,0.03732956,3349.4,3348.8,0.29861]
[1732489868501,2.98535,3349.7,3349.0,0.29859]
[1732489868502,0.03732876,3349.5,3349.0,0.29859]
[1732489868650,0.03732793,3349.6,3349.0,0.29859]
[1732489869008,3.02277793,3349.6,3349.0,0.29859]
[1732489869672,0.03732793,3349.6,3349.1,0.7811]
[1732489869856,2.98552,3349.5,3348.9,0.2986]
[1732489870076,0.03732688,3349.4,3348.9,0.2986]
[1732489870285,0.03732688,3349.4,3348.9,0.29859]
[1732489870685,0.03732688,3349.4,3349.0,0.29859]
[1732489870919,2.98586,3349.2,3348.5,0.29863]
[1732489871120,3.8481824,3349.1,3348.2,0.7848]
[1732489871298,0.8622324,3349.1,3348.2,0.7848]
[1732489871515,2.98596,3349.0,3348.2,0.7848]
[1732489871715,0.03733559,3348.9,3348.2,0.7848]
[1732489871877,0.03733535,3349.0,3348.2,0.7848]
[1732489872077,3.02331535,3349.0,3348.2,0.7848]
[1732489872590,0.03733535,3349.0,3348.2,0.7848]
[1732489872970,0.03733367,3349.3,3348.2,0.7848]
[1732489873202,0.27718728,3349.2,3348.2,0.7848]
[1732489873370,0.03733371,3349.1,3348.2,0.7848]
[1732489873622,0.03733369,3349.3,3348.2,0.7848]
[1732489874559,0.27721549,3349.2,3348.2,0.7848]
[1732489874863,0.03733369,3349.3,3348.2,0.7848]
[1732489875372,0.03733019,3349.5,3348.4,0.7961]
[1732489876176,0.03733019,3349.5,3348.4,3.23286931]
[1732489876381,3.78613,3350.1,3348.9,0.7524]
[1732489876382,0.44363527,3350.0,3348.9,0.7524]
[1732489876657,0.27727201,3349.9,3348.9,0.7524]
[1732489876853,0.8011,3350.1,3348.9,0.7524]
[1732489877172,0.27726671,3350.0,3349.0,0.31891693]
[1732489877409,0.27726671,3349.9,3349.0,0.31891693]
[1732489877700,0.8011,3350.1,3349.0,0.31891693]
[1732489877910,0.8011,3350.1,3349.1,0.35080862]
[1732489878199,2.98534,3349.8,3349.1,0.35080862]
[1732489878373,0.03732415,3349.7,3348.9,0.7524]
[1732489878570,0.03732415,3349.9,3349.2,0.0497113]
[1732489878778,0.27732987,3349.8,3348.9,0.7524]
[1732489879075,0.03732445,3349.7,3349.3,0.0497113]
[1732489879275,0.48113379,3350.1,3348.9,0.7524]
[1732489879464,0.27738621,3350.0,3349.4,0.0497113]
[1732489879677,0.03732011,3349.9,3348.9,0.7524]
[1732489879906,0.481161,3350.3,3349.5,0.04959219]
[1732489880088,0.27740068,3350.2,3349.1,0.8225]
[1732489880409,0.0373201,3350.4,3349.2,3.3088615]
[1732489880703,0.27740314,3350.3,3349.3,0.8225]
[1732489881030,1.047128,3351.0,3349.7,0.8225]
[1732489881209,0.27739943,3350.9,3349.7,0.8225]
[1732489881360,2.9834,3351.9,3350.2,0.8225]
[1732489881361,1.26748983,3351.4,3350.2,0.8225]
[1732489881561,0.31474164,3351.3,3350.2,0.8225]
[1732489881791,0.03730887,3351.4,3350.4,0.779]
[1732489881983,0.18619046,3352.0,3350.4,0.779]
[1732489881984,0.18614951,3352.0,3350.4,0.779]
[1732489882312,0.2996609,3351.9,3350.6,0.779]
[1732489882499,0.74350183,3351.9,3350.6,0.779]
[1732489882783,2.98363,3351.7,3350.6,0.779]
[1732489882947,0.29961222,3351.6,3350.6,0.779]
[1732489883147,0.27743101,3351.5,3350.6,0.779]
[1732489883358,0.29961222,3351.4,3350.6,0.779]
[1732489883557,0.02218121,3351.4,3350.6,0.779]
[1732489883743,0.27740719,3351.3,3350.6,0.779]
[1732489883945,0.02218121,3351.2,3350.6,0.779]
[1732489884887,0.598363,3351.5,3350.6,0.779]
[1732489885080,0.7563,3351.8,3350.6,0.779]
[1732489885292,0.27734235,3351.7,3350.6,0.779]
[1732489885453,0.27734235,3351.6,3350.6,0.779]
[1732489885660,0.02218121,3351.7,3350.6,0.779]
[1732489886089,2.98388,3351.4,3350.6,0.779]
[1732489886259,0.02218121,3351.3,3350.6,0.779]
[1732489887362,0.02218121,3351.5,3350.6,0.779]
[1732489887959,0.02218121,3351.5,3350.7,0.04647196]
[1732489888598,0.02218121,3351.6,3350.7,0.04647196]
[1732489888973,0.7563,3351.7,3350.7,0.04647196]
[1732489889173,0.02218121,3351.6,3350.7,0.04647196]
[1732489889673,0.7563,3351.7,3350.7,0.04647196]
[1732489889988,0.02218121,3351.6,3350.7,0.04647196]
[1732489890296,3.0,3351.7,3350.8,0.7598]
[1732489890497,0.7839,3351.4,3350.7,0.04647196]
[1732489890701,3.0,3351.1,3350.2,0.7598]
[1732489890998,5.98429,3350.9,3350.2,0.7598]
[1732489891168,3.0,3350.7,3350.2,0.7598]
[1732489891368,0.02218121,3350.8,3350.2,0.7598]
[1732489891574,0.02218121,3350.6,3350.2,0.7598]
[1732489891775,0.02218121,3350.8,3350.2,0.7598]
[1732489892507,3.0,3351.0,3350.2,0.7598]
[1732489892685,2.98376,3351.5,3350.2,0.7598]
[1732489892686,3.7839,3351.4,3350.2,0.7598]
[1732489892874,0.02218121,3351.3,3350.2,0.7598]
[1732489893081,0.02218121,3351.3,3350.4,0.7804]
[1732489893474,3.02218121,3351.3,3350.4,0.7804]
[1732489893687,0.02218121,3351.3,3350.4,0.7804]
[1732489893912,0.02218121,3351.4,3350.4,0.7804]
[1732489894091,3.02218121,3351.4,3350.4,0.7804]
[1732489894495,0.02218121,3351.4,3350.4,0.7804]
[1732489894979,0.02218121,3351.6,3350.4,0.7804]
[1732489895315,3.0,3351.5,3350.4,0.7804]
[1732489895522,3.02218121,3351.4,3350.4,0.7804]
[1732489895675,0.7584,3351.1,3350.4,0.7804]
[1732489895871,2.98442,3350.8,3350.1,0.8289]
[1732489896075,0.02218121,3350.7,3350.1,0.8289]
[1732489896378,5.98471,3350.4,3350.2,0.04450516]
[1732489896608,4.60756057,3350.3,3349.0,0.8289]
[1732489896911,4.60756057,3350.3,3347.6,0.02986015]
[1732489896912,2.98507,3350.0,3348.0,0.8289]
[1732489897115,6.00742121,3349.9,3348.1,0.80416174]
[1732489897326,6.00742121,3349.9,3348.1,0.84564594]
[1732489897624,3.02218121,3349.9,3348.1,0.84564594]
[1732489897809,3.00735121,3349.9,3348.1,0.84564594]
[1732489898009,0.02218121,3349.9,3348.5,0.7935]
[1732489898308,3.02218121,3350.4,3348.9,0.7935]
[1732489898483,3.02218121,3350.4,3348.8,2.43676931]
[1732489898484,3.00691121,3350.4,3349.1,0.7935]
[1732489898915,3.00691121,3350.4,3349.1,0.82335552]
[1732489899112,0.02218121,3350.4,3349.1,0.82335552]
[1732489900330,3.02218121,3350.6,3349.1,0.82335552]
[1732489900507,2.9847,3350.5,3349.1,0.82335552]
[1732489900832,3.00690121,3350.4,3349.3,0.7935]
[1732489901335,2.9848,3350.3,3349.3,0.7935]
[1732489901646,0.40047933,3350.2,3349.3,0.7935]
[1732489901788,0.02218121,3350.2,3349.3,0.7935]
[1732489902125,0.02218121,3350.2,3348.3,0.1]
[1732489902126,0.02218121,3350.2,3348.9,0.7935]
[1732489902352,3.02218121,3350.2,3348.9,0.7935]
[1732489902514,2.98528,3349.8,3348.9,0.7935]
[1732489902718,2.98507,3350.0,3348.9,0.7935]
[1732489902719,0.02218121,3349.7,3348.9,0.7935]
[1732489902953,2.98468,3350.5,3348.4,2.53676931]
[1732489903109,0.8086,3350.8,3348.9,0.8314]
[1732489903309,0.02218121,3350.7,3349.1,0.7668]
[1732489903510,0.02218121,3350.7,3349.3,0.7668]
[1732489904037,0.02218121,3350.7,3349.4,0.80892266]
[1732489904653,2.9849,3350.2,3349.4,0.80892266]
[1732489904810,0.02218121,3350.1,3349.4,0.80892266]
[1732489905010,0.02218121,3350.6,3349.4,0.80892266]
[1732489905558,2.98514,3350.0,3349.5,0.3245692]
[1732489905721,3.00735121,3349.9,3349.4,0.80892266]
[1732489905924,0.02218121,3349.9,3349.4,0.7668]
[1732489906125,2.98526,3349.8,3349.4,0.7668]
[1732489906317,0.7804,3350.4,3349.4,0.7668]
[1732489906520,2.98499,3350.1,3349.4,0.7668]
[1732489906957,0.02218121,3350.0,3349.4,0.7668]
[1732489907837,3.00727121,3350.0,3349.4,0.7668]
[1732489908573,3.00725121,3350.0,3349.4,0.7668]
[1732489909456,0.02218121,3350.0,3349.4,0.7668]
[1732489909661,3.00728121,3350.0,3349.4,0.7668]
[1732489909951,0.02218121,3350.0,3349.4,0.7668]
[1732489910156,3.00717121,3350.1,3349.4,0.7668]
[1732489910455,0.02218121,3350.1,3349.4,0.7668]
[1732489911218,0.7605,3349.5,3348.0,0.7542]
[1732489911467,2.98554,3349.5,3348.2,0.7542]
[1732489911621,0.78268121,3349.9,3348.3,0.90504]
[1732489911622,3.00779121,3349.4,3348.3,0.90504]
[1732489912016,3.00779121,3349.4,3348.4,0.04132516]
[1732489912217,0.02218121,3349.4,3348.4,0.04132516]
[1732489912521,2.98569,3349.3,3348.3,0.90504]
[1732489912719,0.02218121,3349.2,3348.3,0.90504]
[1732489913046,0.02218121,3349.6,3348.4,0.04132516]
[1732489913248,0.02218121,3349.2,3348.4,0.04132516]
[1732489913435,0.02218121,3349.2,3348.3,0.90504]
[1732489913619,2.98557,3349.5,3348.3,0.90504]
[1732489913833,3.0,3349.2,3348.4,0.04132516]
[1732489914158,0.02218121,3349.1,3348.3,0.90504]
[1732489914366,3.0,3349.6,3348.3,0.90504]
[1732489914367,0.02218121,3349.4,3348.3,0.90504]
[1732489914532,3.0,3349.6,3348.3,0.90504]
[1732489914533,3.0,3349.6,3348.5,0.8253]
[1732489914890,3.0,3349.5,3348.5,0.8253]
[1732489915056,0.02218121,3349.5,3348.7,0.8253]
[1732489915256,2.98527,3349.8,3348.7,0.8253]
[1732489915257,0.02218121,3349.8,3348.7,0.8253]
[1732489915559,2.98542,3349.7,3348.8,0.04132516]
[1732489915781,0.02218121,3349.6,3348.7,0.8253]
[1732489916079,0.02218121,3349.6,3348.8,0.04132516]
[1732489916454,0.02218121,3349.6,3348.7,0.8253]
[1732489916845,0.02218121,3349.6,3348.8,0.04132516]
[1732489917283,0.02218121,3349.6,3348.7,0.8253]
[1732489917583,0.02218121,3349.8,3348.8,0.04132516]
[1732489917749,0.02218121,3349.8,3348.9,0.8042]
[1732489918283,2.98534,3349.7,3348.9,0.8042]
[1732489918453,2.98596,3349.0,3348.9,0.8042]
[1732489918804,0.02218121,3349.2,3348.9,0.8042]
[1732489919655,3.00780121,3349.4,3348.9,0.8042]
[1732489920067,3.73849,3350.0,3348.9,0.8042]
[1732489920276,0.3000426,3349.9,3348.9,0.8042]
[1732489920443,0.02218121,3349.9,3348.9,0.8042]
[1732489920657,0.30000329,3350.2,3348.9,0.8042]
[1732489920983,3.79545,3350.7,3349.1,0.8264]
[1732489920984,3.00677121,3350.6,3349.1,0.8264]
[1732489921191,3.00677121,3350.6,3349.0,0.45176452]
[1732489921192,0.2778167,3350.5,3349.2,0.0414792]
[1732489921401,2.98509,3350.0,3349.3,0.8264]
[1732489921578,0.02218121,3349.9,3349.4,0.0414792]
[1732489921745,0.811,3350.7,3349.4,0.0414792]
[1732489921746,0.02218121,3350.6,3349.4,0.0414792]
[1732489921947,2.98471,3350.4,3349.3,0.8264]
[1732489922194,0.02218121,3350.3,3349.4,0.04124595]
[1732489922401,0.02218121,3350.3,3349.3,0.8264]
[1732489922587,0.2084028,3350.8,3349.5,0.7854]
[1732489922794,0.27791345,3350.7,3349.7,0.7854]
[1732489923095,2.98428,3350.9,3349.7,0.7854]
[1732489923304,0.30013541,3350.8,3349.9,0.7854]
[1732489923462,0.02218121,3350.8,3349.9,0.7854]
[1732489923667,2.98436,3350.8,3350.0,0.04121075]
[1732489923891,0.02218121,3350.7,3350.0,0.04121075]
[1732489924089,0.02218121,3350.7,3349.9,0.7854]
[1732489924405,0.02218121,3350.7,3350.0,0.04121075]
[1732489924577,0.02218121,3350.7,3349.9,0.7854]
[1732489924776,0.02218121,3350.9,3349.9,0.7854]
[1732489925295,3.0,3350.4,3349.9,0.7854]
[1732489925599,0.02218121,3350.3,3349.9,0.7854]
[1732489925801,0.02218121,3350.6,3349.9,0.7854]
[1732489926300,0.62127733,3350.6,3349.9,0.7854]
[1732489926498,0.02218121,3350.6,3349.9,0.7854]
[1732489927509,0.02218121,3350.7,3349.9,0.7854]
[1732489927827,3.0,3350.9,3349.9,0.7854]
[1732489927970,0.02218121,3350.9,3349.9,0.7854]
[1732489928170,0.44500488,3351.4,3350.0,0.04102596]
[1732489928374,0.30029607,3351.3,3350.0,0.7764]
[1732489928611,0.27811486,3351.2,3350.2,0.7764]
[1732489928802,0.30023127,3351.1,3350.2,0.7764]
[1732489929109,0.30023127,3351.1,3350.3,0.04102596]
[1732489929110,2.98433,3350.9,3350.3,0.04102596]
[1732489929286,0.02218121,3350.8,3350.3,0.04102596]
[1732489929486,0.02218121,3350.8,3350.2,0.7764]
[1732489929683,2.98446,3350.7,3350.2,0.7764]
[1732489929885,0.02218121,3350.6,3350.3,0.04102596]
[1732489930089,0.02218121,3350.6,3350.2,0.7764]
[1732489930603,2.98427,3350.9,3350.2,0.7764]
[1732489931481,0.02218121,3351.0,3350.2,0.7764]
[1732489931817,0.7972,3351.2,3350.3,0.04091598]
[1732489931991,0.02218121,3351.2,3350.3,0.04091598]
[1732489932190,3.00624121,3351.2,3350.2,0.7764]
[1732489932395,3.00624121,3351.2,3350.3,0.04058602]
[1732489932694,2.98427,3350.9,3350.2,0.7764]
[1732489932898,3.00654121,3350.8,3350.2,0.7764]
[1732489933122,3.00654121,3350.8,3350.3,0.04047606]
[1732489933323,2.98445,3350.7,3350.3,0.04047606]
[1732489933662,0.02218121,3350.8,3350.2,0.7764]
[1732489933663,3.00672121,3350.6,3350.2,0.7764]
[1732489933976,3.00672121,3350.6,3349.1,3.0]
[1732489933977,2.98478,3350.4,3349.2,0.8176]
[1732489934223,3.00707121,3350.3,3349.3,0.85814203]
[1732489934399,0.02218121,3350.3,3349.3,0.85814203]
[1732489934585,3.00699121,3350.3,3349.3,0.85814203]
[1732489934792,0.02218121,3350.3,3349.3,0.85814203]
[1732489935411,0.02218121,3350.4,3349.3,0.85814203]
[1732489936216,3.00685121,3350.5,3349.3,0.85814203]
[1732489936414,3.00685121,3350.5,3349.4,0.3858142]
[1732489936627,3.00685121,3350.5,3349.5,0.79405758]
[1732489937077,0.02218121,3350.5,3349.5,0.79405758]
[1732489938095,0.02218121,3350.6,3349.5,0.79405758]
[1732489938827,0.02218121,3350.6,3349.6,0.42097244]
[1732489939031,2.98478,3350.4,3349.7,0.79854438]
[1732489939235,0.02218121,3350.3,3349.7,0.79854438]
[1732489939391,2.98461,3350.6,3349.7,0.79854438]
[1732489939594,0.57218121,3350.5,3349.7,0.79854438]
[1732489939803,2.98514,3350.0,3348.9,0.7578]
[1732489940003,2.98505,3350.1,3349.0,0.04077518]
[1732489940231,0.02218121,3350.0,3349.0,0.04077518]
[1732489940413,0.02218121,3350.0,3349.1,0.7578]
[1732489940910,0.02218121,3350.0,3349.2,0.04089398]
[1732489941108,2.98461,3350.6,3349.1,0.7578]
[1732489941309,2.98481,3350.3,3349.4,0.8242]
[1732489941498,0.02218121,3350.2,3349.4,0.8242]
[1732489941893,2.98504,3350.1,3349.5,0.04089838]
[1732489942094,0.02218121,3350.0,3349.5,0.04089838]
[1732489942301,2.98501,3350.1,3349.4,0.8242]
[1732489942605,2.9848,3350.4,3349.4,0.8242]
[1732489942606,0.02218121,3350.0,3349.4,0.8242]
[1732489942816,0.02218121,3350.3,3349.4,0.8242]
[1732489943332,0.02218121,3350.6,3349.6,0.7595]
[1732489943544,0.27799483,3350.5,3349.6,0.7595]
[1732489943698,0.02218121,3350.8,3349.8,0.7595]
[1732489944038,0.4669499,3351.1,3350.0,0.7595]
[1732489944337,0.72285602,3351.0,3350.0,0.7595]
[1732489944499,0.30026854,3350.9,3350.0,0.7595]
[1732489944693,0.02218121,3350.9,3350.1,0.04098635]
[1732489944892,0.27809136,3350.8,3350.1,0.04098635]
[1732489945096,0.02218121,3351.1,3349.7,0.7539]
[1732489945333,0.46713452,3351.4,3350.1,0.7539]
[1732489945494,0.27805865,3351.3,3350.3,0.8274]
[1732489945837,0.2780488,3351.2,3350.5,0.8274]
[1732489946030,0.02218121,3351.4,3350.5,0.8274]
[1732489946241,0.27812004,3351.3,3350.5,0.8274]
[1732489946412,0.02218121,3351.2,3350.5,0.8274]
[1732489946612,0.02218121,3351.2,3350.6,0.04071804]
[1732489946833,0.27809322,3351.1,3350.6,0.04071804]
[1732489947027,0.02218121,3351.0,3350.6,0.04071804]
[1732489947339,3.00636121,3351.0,3350.5,0.8274]
[1732489947834,0.62121033,3351.0,3349.6,0.7895]
[1732489948035,2.9847,3350.5,3349.6,0.7895]
[1732489948196,0.02218121,3350.5,3349.6,0.7895]
[1732489948537,0.02218121,3350.5,3349.7,0.03911403]
[1732489948839,0.02218121,3350.8,3349.8,0.7895]
[1732489949002,0.2782433,3350.7,3349.8,0.7895]
[1732489949199,0.27846839,3350.6,3349.8,0.7895]
[1732489949442,0.02218121,3350.8,3349.9,0.03924148]
[1732489949643,0.27846378,3350.7,3350.0,0.8284]
[1732489949796,0.02218121,3351.0,3350.0,0.8284]
[1732489950138,0.27846512,3350.9,3350.0,0.8284]
[1732489950342,0.27846512,3350.8,3350.0,0.8284]
[1732489950638,3.0,3351.0,3350.0,0.8284]
[1732489950938,0.27847504,3350.9,3350.0,0.8284]
[1732489951094,0.27846966,3350.8,3350.0,0.8284]
[1732489951301,3.00630121,3351.1,3350.0,0.8284]
[1732489951526,3.26265977,3351.0,3350.0,0.8284]
[1732489951720,0.27845977,3350.9,3350.0,0.8284]
[1732489951941,0.27849215,3350.8,3350.0,0.8284]
[1732489952124,0.675696,3351.1,3350.0,0.8284]
[1732489952321,0.27848341,3351.0,3350.0,0.8284]
[1732489952525,2.98393,3351.3,3350.0,0.8284]
[1732489952526,0.27848341,3350.9,3350.0,0.8284]
[1732489952730,0.02218121,3351.2,3350.2,0.8057]
[1732489952929,0.27849625,3351.1,3350.2,0.8057]
[1732489953246,3.00588121,3351.6,3350.3,0.84553054]
[1732489953550,0.72393813,3351.5,3350.4,0.8363445]
[1732489953705,0.27844624,3351.4,3350.4,0.8065]
[1732489953896,0.20832564,3351.9,3350.6,0.813]
[1732489954100,0.723927,3351.8,3350.6,0.813]
[1732489954347,0.30061467,3351.7,3350.6,0.813]
[1732489954642,0.27843346,3351.6,3350.8,0.7707]
[1732489954802,3.00574121,3351.7,3350.8,0.7707]
[1732489955004,3.00574121,3351.7,3350.9,0.03893389]
[1732489955227,0.02218121,3351.7,3350.9,0.03893389]
[1732489955502,3.00560121,3351.9,3350.9,0.03893389]
[1732489955700,0.27820296,3351.8,3351.0,0.7611]
[1732489955904,0.02218121,3351.7,3351.0,0.7611]
[1732489956172,2.9833,3352.0,3351.0,0.7611]
[1732489956344,2.9835,3351.8,3351.1,0.03881089]
[1732489956645,0.02218121,3351.7,3351.0,0.7611]
[1732489956826,0.02218121,3351.7,3351.1,0.03881089]
[1732489957139,0.02218121,3351.7,3351.0,0.7611]
[1732489957344,0.02218121,3351.9,3351.0,0.7611]
[1732489957642,0.27804661,3351.8,3351.1,0.03878453]
[1732489957814,0.30022782,3351.7,3351.0,0.7611]
[1732489958015,3.00548121,3352.0,3351.0,0.7611]
[1732489958244,0.27803367,3351.9,3351.0,0.7611]
[1732489958415,0.02218121,3351.8,3351.0,0.7611]
[1732489959046,3.00568121,3351.8,3351.0,0.7611]
[1732489959726,0.02218121,3351.8,3351.0,0.7611]
[1732489959957,4.02592155,3352.0,3351.0,0.7611]
[1732489960260,3.2779325,3351.9,3351.0,0.7611]
[1732489960426,0.02218121,3351.8,3351.0,0.7611]
[1732489960610,3.02218121,3351.8,3351.0,0.7611]
[1732489960821,0.70260316,3351.7,3351.0,0.7611]
[1732489961151,2.98285,3352.5,3351.0,0.7611]
[1732489961356,0.27784428,3352.4,3351.3,0.7602]
[1732489961510,2.98251,3352.9,3351.5,0.7602]
[1732489961714,3.70461314,3352.8,3351.5,0.7602]
[1732489961953,0.375533,3352.9,3351.7,0.7602]
[1732489962122,0.29987203,3352.8,3351.7,0.7602]
[1732489962322,0.02218121,3352.8,3351.9,0.7602]
[1732489962559,3.00484121,3352.8,3351.9,0.7602]
[1732489962728,2.98267,3352.7,3352.0,0.03816515]
[1732489962928,2.98267,3352.7,3351.9,0.7602]
[1732489962929,0.02218121,3352.6,3351.9,0.7602]
[1732489963231,3.60357833,3352.7,3351.9,0.7602]
[1732489963415,2.98293,3352.5,3351.9,0.7602]
[1732489963620,0.02218121,3352.6,3351.9,0.7602]
[1732489963938,3.44794704,3352.6,3351.9,0.7602]
[1732489964521,3.44795704,3352.6,3351.9,0.7602]
[1732489964849,0.46518704,3352.6,3351.9,0.7602]
[1732489965264,0.02218121,3352.6,3351.9,0.7602]
[1732489965468,2.98267,3352.7,3351.9,0.7602]
[1732489965825,2.98259,3352.8,3351.9,0.7602]
[1732489966124,3.00477121,3352.8,3351.9,0.7602]
[1732489966329,2.98244,3353.0,3351.9,0.7602]
[1732489966542,3.00472121,3352.9,3351.9,0.7602]
[1732489966759,2.98262,3352.8,3352.0,0.03792807]
[1732489967144,0.02218121,3352.7,3352.0,0.03792807]
[1732489967357,2.98254,3352.9,3352.0,0.03792807]
[1732489967358,0.02218121,3352.9,3352.0,0.03792807]
[1732489967571,0.02218121,3353.1,3352.1,0.7777]
[1732489967773,0.89238765,3353.1,3352.1,0.7777]
[1732489967931,0.02218121,3353.3,3352.1,0.7777]
[1732489968271,3.00435121,3353.3,3352.2,0.03792807]
[1732489968446,2.98222,3353.2,3352.2,0.794]
[1732489968632,2.98222,3353.2,3352.3,0.03746271]
[1732489968966,0.7638,3353.6,3352.4,0.794]
[1732489969165,2.98211,3353.4,3352.4,0.794]
[1732489969461,0.02218121,3353.3,3352.4,0.794]
[1732489969778,2.98231,3353.1,3352.4,0.794]
[1732489969930,3.00460121,3353.0,3352.4,0.794]
[1732489970133,2.98251,3352.9,3352.4,0.794]
[1732489970441,0.02218121,3352.8,3352.4,0.794]
[1732489970640,0.02218121,3352.8,3352.5,0.03746271]
[1732489970868,0.02218121,3352.8,3352.4,0.794]
[1732489971334,0.02218121,3352.9,3352.4,0.794]
[1732489971977,0.02218121,3353.0,3352.4,0.794]
[1732489972333,2.98231,3353.1,3352.4,0.794]
[1732489972643,2.98213,3353.4,3352.4,0.794]
[1732489973134,3.00431121,3353.4,3352.4,0.794]
[1732489973336,2.98213,3353.3,3352.4,0.794]
[1732489973534,0.02218121,3353.4,3352.4,0.794]
[1732489974062,0.02218121,3353.4,3352.5,0.03746271]
[1732489974364,0.02218121,3353.6,3352.6,0.7992]
[1732489974569,0.8042,3354.3,3353.0,0.7992]